Cogmind - Beta 14 @@@ ROGUE MODE // 2024.11.08 @ 17:35:10 Player: OG DANIEL Result: Destroyed by G-47 Trooper with Particle Gun Performance ------------- Evolutions (2) 1000 Regions Visited (5) 1000 Robots Destroyed (38) 190 Value Destroyed (1138) 1138 Prototype IDs (0) 0 Alien Tech Used (0) 0 Bonus (185) 185 TOTAL SCORE: 3513 Bonus ------- Follower Combat Kills 185 Cogmind --------- Core Integrity 0/550 Matter 300/300 Energy 100/100 System Corruption 0% Temperature Cool (9) Movement Core (50) Location -8/Materials Parts ------- > --- POWER (1) -------- (None) > --- PROPULSION (4) --- (None) > --- UTILITY (3) ------ Improved Signal Interpreter > --- WEAPON (3) ------- (None) > --- INVENTORY (5) ---- Light Assault Rifle Greatsword Greatsword Peak State ------------ > --- POWER ------------ Light Nuclear Core > --- PROPULSION ------- Light Treads Aluminum Leg Aluminum Leg > --- UTILITY ---------- Large Storage Unit Improved Signal Interpreter Improved Targeting Computer > --- WEAPON ----------- Assault Cannon Chainsword Chainsword > --- INVENTORY -------- Light Ion Engine Hacking Suite Particle Gun EM Pulse Cannon Ion Cannon Assault Rifle Light Assault Rifle Light Assault Rifle Chainsword Greatsword Greatsword [Rating: 26] Favorites ----------- Power Light Ion Engine Engine Light Ion Engine Power Core Light Nuclear Core Propulsion Compact Wheel Treads Light Treads Leg Aluminum Leg Wheel Compact Wheel Utility Small Storage Unit Device Improved Terrain Scanner Storage Small Storage Unit Processor Improved Targeting Computer Protection Light Armor Plating Weapon Chainsword Energy Gun EM Pulse Gun Energy Cannon Ion Cannon Ballistic Gun Assault Rifle Ballistic Cannon Assault Cannon Slashing Weapon Chainsword Build | -11 -10 -10 -9 -9 -8 ------- Run | Yrd Mat Min Mat Min Mat Slots Evolved 4 | . . . 2 . 2 Power . | . . . . . . Propulsion 2 | . . . 2 . . Utility 1 | . . . . . 1 Weapon 1 | . . . . . 1 Parts Attached 49 | 9 3 1 10 2 24 Power 10 | 2 1 . 1 1 5 Engine 7 | 2 1 . . 1 3 Core 3 | . . . 1 . 2 Reactor . | . . . . . . Propulsion 19 | 4 . . 5 . 10 Treads 4 | 2 . . . . 2 Leg 8 | . . . 3 . 5 Wheel 7 | 2 . . 2 . 3 Hover . | . . . . . . Flight . | . . . . . . Utility 7 | 1 2 . 1 . 3 Device 1 | . 1 . . . . Storage 2 | 1 . . 1 . . Processor 3 | . 1 . . . 2 Hackware . | . . . . . . Protection 1 | . . . . . 1 Artifact . | . . . . . . Weapon 13 | 2 . 1 3 1 6 Energy Gun 2 | 1 . . . . 1 Energy Cannon 3 | . . 1 2 . . Ballistic Gun 3 | 1 . . 1 1 . Ballistic Cannon 3 | . . . . . 3 Launcher . | . . . . . . Special Weapon . | . . . . . . Impact Weapon . | . . . . . . Slashing Weapon 2 | . . . . . 2 Piercing Weapon . | . . . . . . Special Melee Weapon . | . . . . . . Unidentified Prototypes . | . . . . . . Corrupted Parts 1 | . . . 1 . . System Corruption 9 | . . . 9 . . Parts Lost 26 | . . . 2 2 22 Power 7 | . . . . 1 6 Propulsion 11 | . . . 1 . 10 Utility 3 | . . . . 1 2 Weapon 5 | . . . 1 . 4 Highest Loss Streak 7 | . . . 2 2 7 To Critical Strikes . | . . . . . . Average Slot Usage (%) 90 | . 91 100 92 97 81 Engine 8 | . 14 14 5 . 4 Core 2 | . . . 5 9 1 Treads 1 | . . . . . 5 Leg 8 | . . . 15 22 12 Wheel 20 | . 28 28 22 22 9 Device 5 | . 1 14 11 9 . Storage 11 | . 14 14 11 11 8 Processor 5 | . 5 . . . 12 Energy Gun 7 | . 14 14 5 . 1 Energy Cannon 3 | . . 3 11 11 . Ballistic Gun 7 | . 14 10 5 11 . Ballistic Cannon 1 | . . . . . 6 Slashing Weapon 5 | . . . . . 17 Peak Build Rating 26 | 6 9 12 16 16 26 Average Rating 13 | 5 7 10 14 15 21 On Entrance 9 | . 6 9 12 16 11 Naked Turns . | . . . . . . Heaviest Build 38 | 14 14 17 34 33 38 Greatest Support 40 | 40 32 32 32 32 40 Greatest Overweight (x) 8 | . . . 3 1 8 Average Overweight (x) . | . . . 1 . 1 Largest Inventory Capacity 15 | 8 8 8 15 15 15 Average Capacity 11 | 6 8 8 12 15 14 Most Carried 15 | 6 8 8 8 10 15 Average Carried 9 | 2 7 7 7 8 14 Final Capacity 15 | 8 8 8 15 15 5 Final Carried 10 | 6 8 8 8 10 5 Class Distribution -------------------- 78% | Mutant 21% | Scavenger-Mutant Dominant Class ---------------- Mutant | -10/Materials Mutant | -10/Mines Mutant | -9/Materials Scavenger-Mutant | -9/Mines Mutant | -8/Materials Resources | -11 -10 -10 -9 -9 -8 ----------- Run | Yrd Mat Min Mat Min Mat Matter Collected 963 | 209 147 6 153 64 384 Remotely . | . . . . . . Salvage Created 1399 | . 262 . 239 36 862 Parts 85 | . 25 . 10 3 47 Haulers Intercepted . | . . . . . . Recyclers Shooed 1 | . . . 1 . . Parts Field Recycled . | . . . . . . Retrieved Matter . | . . . . . . Parts Self-Destructed . | . . . . . . Prevented . | . . . . . . Kills | -11 -10 -10 -9 -9 -8 ------- Run | Yrd Mat Min Mat Min Mat Combat Hostiles Destroyed 27 | . 4 . 5 2 16 Melee 12 | . . . . . 12 Guns 7 | . 4 . 1 1 1 Cannons 8 | . . . 4 1 3 Classes Destroyed 10 | . 3 . 1 1 5 Worker 1 | . . . . . 1 Builder 3 | . . . . . 3 Tunneler 1 | . 1 . . . . Recycler 1 | . . . . . 1 Operator 1 | . . . . . 1 Watcher 4 | . 3 . . . 1 Swarmer 4 | . . . . 2 2 Grunt 17 | . 4 . 4 . 9 Duelist 1 | . . . . . 1 Sentry 5 | . . . 1 . 4 Best Kill Streak 5 | . 3 . 4 2 5 Combat Bots Only 4 | . 2 . 4 2 4 Max Kills in Single Turn 1 | . 1 . 1 1 1 Gunslinging . | . . . . . . Exploded . | . . . . . . Melee 1 | . . . . . 1 Uniques/NPCs Destroyed . | . . . . . . Combat | -11 -10 -10 -9 -9 -8 -------- Run | Yrd Mat Min Mat Min Mat Hostile Shots Fired 246 | . 8 . 36 5 197 Missed 55 | . 3 . 6 1 45 Damage Taken 3005 | . 56 1 369 343 2236 Core 771 | . 33 . 73 112 553 Absorbed by Shields . | . . . . . . Core Remaining (%) 79 | 100 . 86 . 53 . Volleys Fired 88 | . 12 . 23 3 50 Largest 2 | . 2 . 2 2 1 Hottest 100 | . 60 . 100 80 65 Shots Fired 126 | . 24 . 45 7 50 Gun 58 | . 24 . 22 4 8 Cannon 68 | . . . 23 3 42 Launcher . | . . . . . . Special . | . . . . . . Kinetic 75 | . 12 . 17 4 42 Thermal 21 | . . . 10 3 8 Explosive . | . . . . . . Electromagnetic 30 | . 12 . 18 . . Robot Hit Streak 11 | . 4 . 11 4 7 Robot Miss Streak 2 | . 2 . 2 2 2 Penetration Max . | . . . . . . Secondary Targets . | . . . . . . Shots Hit Robots 126 | . 14 . 33 4 75 Core Hits 53 | . 11 1 9 3 29 Critical Kills . | . . . . . . Critical Parts Destroyed . | . . . . . . Critical Strikes 11 | . . . 1 . 10 Blast 1 | . . . . . 1 Corrupt 1 | . . . 1 . . Sever 9 | . . . . . 9 Melee Attacks 57 | . . . . . 57 Impact . | . . . . . . Slashing 57 | . . . . . 57 Piercing . | . . . . . . Sneak Attacks 5 | . . . . . 5 Combat Hostiles . | . . . . . . Follow-up Attacks 9 | . . . . . 9 Damage Inflicted 3418 | . 200 3 612 70 2533 Guns 422 | . 200 . 127 15 80 Cannons 1176 | . . . 482 45 649 Explosions . | . . . . . . Melee 1804 | . . . . . 1804 Ramming 16 | . . 3 3 10 . Kinetic 856 | . 80 . 112 15 649 Thermal 310 | . . . 185 45 80 Explosive . | . . . . . . Electromagnetic 432 | . 120 . 312 . . Impact . | . . . . . . Slashing 1804 | . . . . . 1804 Piercing . | . . . . . . Highest Corruption 11 | . . . 10 11 . Average Corruption 9 | . . . 9 10 . Corruption Purged . | . . . . . . Corruption Blocked . | . . . . . . Effects 16 | . . . 8 8 . Matter Fused 6 | . . . 2 4 . Energy Discharges 5 | . . . 3 2 . Data Loss (minor) 1 | . . . . 1 . Misfires 2 | . . . 1 1 . Misdirections 1 | . . . 1 . . Weapon Failures 1 | . . . 1 . . Overload Shots . | . . . . . . Overflow Damage 46 | . . . 13 . 33 Projectiles 13 | . . . 13 . . Explosions . | . . . . . . Melee 33 | . . . . . 33 Knockbacks 11 | . . . . 1 10 Impact 1 | . . . . 1 . Kinetic 9 | . . . . . 9 Secondary 1 | . . . . . 1 Self-Inflicted Damage 7 | . . 1 1 5 . Shots . | . . . . . . Rammed 3 | . . 1 1 1 . Targets Rammed 3 | . . 1 1 1 . Kicked . | . . . . . . Crushed . | . . . . . . Highest Temperature 396 | . 18 . 396 38 51 Average Temperature 111 | . 11 . 195 19 20 Received Heat Transfer 1368 | . 30 . 195 . 1143 Effects 2 | . . . 2 . . Shutdowns 1 | . . . 1 . . Matter Decay 1 | . . . 1 . . Siege Activations . | . . . . . . Robots Corrupted . | . . . . . . Combat Hostiles . | . . . . . . Parts Fried . | . . . . . . Impact Corruptions . | . . . . . . Robots Melted . | . . . . . . Combat Hostiles . | . . . . . . Parts Melted 1 | . . . 1 . . Heat Transferred 555 | . . . 296 74 185 Parts Sabotaged . | . . . . . . Parts Stolen . | . . . . . . Parts Stripped . | . . . . . . Power Chain Reactions . | . . . . . . Alert | -11 -10 -10 -9 -9 -8 ------- Run | Yrd Mat Min Mat Min Mat Peak Influence 225 | . 94 68 225 29 215 Initial 31 | . . 31 . 9 11 Average 60 | . 24 33 107 11 101 Maximum Alert Level 1 | . . . 1 . 1 Low Security (%) 97 | 100 100 100 95 100 93 Level 1 2 | . . . 4 . 6 Level 2 . | . . . . . . Level 3 . | . . . . . . Level 4 . | . . . . . . Level 5 . | . . . . . . High Security . | . . . . . . Max Security . | . . . . . . Squads Dispatched 7 | . 1 1 2 . 3 Investigation 2 | . . 1 . . 1 Extermination . | . . . . . . Reinforcement 5 | . 1 . 2 . 2 Assault . | . . . . . . Garrison . | . . . . . . Intercept . | . . . . . . Searches Triggered . | . . . . . . Construction Impeded . | . . . . . . Haulers Reinforced . | . . . . . . Active Scanning Responses . | . . . . . . Cargo Convoy Interrupts . | . . . . . . Stealth | -11 -10 -10 -9 -9 -8 --------- Run | Yrd Mat Min Mat Min Mat Distress Signals 5 | . 1 . 2 . 2 Communications Jammed . | . . . . . . Distress Signals . | . . . . . . Times Spotted 54 | . 10 1 12 3 28 Peak Tracking Total 5 | . 2 . 4 3 5 Tactical Retreats 2 | . . . . . 2 Traps | -11 -10 -10 -9 -9 -8 ------- Run | Yrd Mat Min Mat Min Mat Traps Triggered 2 | . . . 1 . 1 Indirectly . | . . . . . . Trap Hack Attempts . | . . . . . . Triggered . | . . . . . . Disarmed . | . . . . . . Reprogrammed . | . . . . . . Reused . | . . . . . . Traps Extracted . | . . . . . . Installed . | . . . . . . Triggered . | . . . . . . Machines | -11 -10 -10 -9 -9 -8 ---------- Run | Yrd Mat Min Mat Min Mat Machines Disabled . | . . . . . . Max in Single Turn . | . . . . . . Machines Repaired . | . . . . . . Machines Dismantled . | . . . . . . Machines Sabotaged . | . . . . . . Overloaded Fab Kills . | . . . . . . Hacking | -11 -10 -10 -9 -9 -8 --------- Run | Yrd Mat Min Mat Min Mat Machines Accessed 3 | . . 2 1 . . Terminals 1 | . . 1 . . . Fabricators . | . . . . . . Repair Stations . | . . . . . . Recycling Units 1 | . . . 1 . . Scanalyzers . | . . . . . . Garrison Access . | . . . . . . Total Hacks 3 | . . 2 1 . . Successful 3 | . . 2 1 . . Failed . | . . . . . . Catastrophic . | . . . . . . Database Lockouts . | . . . . . . Manual . | . . . . . . Terminals 1 | . . 1 . . . Fabricators . | . . . . . . Repair Stations . | . . . . . . Recycling Units 1 | . . . 1 . . Scanalyzers . | . . . . . . Garrison Access . | . . . . . . Terminal Hacks 2 | . . 2 . . . Open Door 1 | . . 1 . . . Zone Layout 1 | . . 1 . . . Fabricator Hacks . | . . . . . . Repair Station Hacks . | . . . . . . Recycling Unit Hacks 1 | . . . 1 . . Process 1 | . . . 1 . . Scanalyzer . | . . . . . . Garrison Access Hacks . | . . . . . . Unauthorized Hacks . | . . . . . . Terminals . | . . . . . . Fabricators . | . . . . . . Repair Stations . | . . . . . . Recycling Units . | . . . . . . Scanalyzers . | . . . . . . Garrison Access . | . . . . . . Data Cores Recovered . | . . . . . . Used . | . . . . . . Hacking Detections 1 | . . . 1 . . Full Trace Events . | . . . . . . Feedback Events . | . . . . . . Feedback Blocked . | . . . . . . Robot Schematics Acquired . | . . . . . . Robots Built . | . . . . . . Authchips . | . . . . . . Time . | . . . . . . Total Robot Build Rating . | . . . . . . Part Schematics Acquired . | . . . . . . Parts Built . | . . . . . . Authchips . | . . . . . . Time . | . . . . . . Total Part Build Rating . | . . . . . . Parts Repaired . | . . . . . . Time . | . . . . . . Parts Recycled . | . . . . . . Recycled Matter 2 | . . . 2 . . Retrieved Matter . | . . . . . . Retrieved Components . | . . . . . . Parts Scanalyzed . | . . . . . . Part Schematics Acquired . | . . . . . . Parts Damaged . | . . . . . . Bothacking | -11 -10 -10 -9 -9 -8 ------------ Run | Yrd Mat Min Mat Min Mat Used RIF Installer . | . . . . . . Robots Hacked . | . . . . . . Non-combat . | . . . . . . Combat . | . . . . . . Robot Hacks Applied . | . . . . . . Relay Couplers Released . | . . . . . . Fabnet Peak Effective % . | . . . . . . Robots Rewired . | . . . . . . Allies Hacked . | . . . . . . Hacks Repelled . | . . . . . . Allies | -11 -10 -10 -9 -9 -8 -------- Run | Yrd Mat Min Mat Min Mat Total Allies 3 | . . 3 . . . Largest Group 3 | . . 3 2 . . Highest-Rated Group 40 | . . 40 32 . . Highest-Rated Ally 16 | . . 16 16 . . Total Orders . | . . . . . . Ally Attacks 26 | . . 6 20 . . Total Damage 313 | . . 43 270 . . Kills 8 | . . 2 6 . . Allies Corrupted . | . . . . . . Allies Melted . | . . . . . . Intel | -11 -10 -10 -9 -9 -8 ------- Run | Yrd Mat Min Mat Min Mat Robot Analysis Total . | . . . . . . Derelict Logs Recovered 2 | . . 1 . 1 . Drone Launches . | . . . . . . Drone Recoveries . | . . . . . . Exploration | -11 -10 -10 -9 -9 -8 ------------- Run | Yrd Mat Min Mat Min Mat Turns Passed 2499 | 88 653 403 405 191 759 Spaces Moved 1356 | 50 317 384 189 157 259 Core 6 | 1 . . . . 5 Treads 52 | 35 . . . . 17 Legs 153 | . . . 88 . 65 Wheels 1145 | 14 317 384 101 157 172 Hover . | . . . . . . Flight . | . . . . . . Fastest Speed 50 | 50 100 100 115 100 95 Average Speed 121 | 141 100 100 161 113 153 Slowest Speed 450 | 160 100 100 330 115 450 Overloaded Moves . | . . . . . . Propulsion Burnouts . | . . . . . . Robots Hopped . | . . . . . . Cave-ins Triggered 1 | . . . . 1 . Exploration Rate (%) 33 | 3 44 68 20 43 22 Regions Visited 5 Branch Regions 2 Pre-discovered Areas 1 | . . 1 . . . Known Exits Taken 1 | . . . . 1 . Unknown Exits Taken 4 | 1 1 1 1 . . Scrap Searched 1 | . . . . 1 . Spaces Dug . | . . . . . . Terrain Destroyed 9 | . . . 1 . 8 Melee . | . . . . . . Projectile 9 | . . . 1 . 8 AOE . | . . . . . . Terrain Rammed . | . . . . . . Walls Destroyed . | . . . . . . Machines Disabled . | . . . . . . Actions | -11 -10 -10 -9 -9 -8 --------- Run | Yrd Mat Min Mat Min Mat Total 1997 | 63 629 404 246 163 492 Wait 423 | . 291 13 20 . 99 Move 1351 | 49 316 383 188 156 259 Hop . | . . . . . . Pick Up 19 | 5 3 3 1 1 6 Fast Attach 27 | 6 3 . 2 1 15 Attach 9 | . . . 4 . 5 Detach 6 | . 2 . 2 . 2 Swap 13 | 3 . 1 4 1 4 Drop 11 | . 2 3 1 . 5 Fire 88 | . 12 . 23 3 50 Melee 47 | . . . . . 47 Ram 3 | . . 1 1 1 . Kick . | . . . . . . Crush . | . . . . . . Escape Stasis . | . . . . . . Rewire . | . . . . . . Trap . | . . . . . . Miscellaneous . | . . . . . . Route ------- -11/Scrapyard -10/Materials (discovered 2 exits: *Mat / *Min) -10/Mines -9/Materials (discovered 2 exits: Mat / [*Min]) -9/Mines -8/Materials (discovered 1 exit: Sto) History --------- Turn | Location | Event 30 | -11/Scrapyard | Discovered new exit (range 16) 89 | -11/Scrapyard | Entered Materials 305 | -10/Materials | Build established: Mutant 390 | -10/Materials | Discovered new exit (range 7) 689 | -10/Materials | Discovered new exit (range 6) 742 | -10/Materials | Entered Mines 779 | -10/Mines | Assisted by bots powering up and referring to "LRC-V3" 859 | -10/Mines | Received a Rocket Launcher from a helpful Derelict 875 | -10/Mines | Met a Derelict shopkeep closing up shop 993 | -10/Mines | Learned location of Storage (-8) 1076 | -10/Mines | Learned location of 1 exit from Materials 1097 | -10/Mines | Discovered new exit (range 9) 1145 | -10/Mines | Entered Materials 1145 | -9/Materials | Accompanied by 2 allies 1145 | -9/Materials | Evolved 2 slots: Propulsion x2 1146 | -9/Materials | Identified exit to Materials 1341 | -9/Materials | System corruption reached 10% 1447 | -9/Materials | Discovered new exit (range 14) 1550 | -9/Materials | Entered Mines 1648 | -9/Mines | Assembled infested the area 1653 | -9/Mines | Assisted by a Guerilla fighting off Assembled 1708 | -9/Mines | Build established: Scavenger-Mutant 1716 | -9/Mines | Discovered exit to Materials (range 8) 1718 | -9/Mines | Crushed by falling debris 1741 | -9/Mines | Entered Materials 1741 | -8/Materials | Evolved 2 slots: Utility x1, Weapon x1 1742 | -8/Materials | Identified exit to Storage 2237 | -8/Materials | Lost 4 parts (1p2n1w) 2440 | -8/Materials | Lost 3 parts (1p2n) 2455 | -8/Materials | Core integrity fell below 50% 2483 | -8/Materials | Core integrity fell below 20% 2500 | -8/Materials | Destroyed by G-47 Trooper with Particle Gun Last Messages --------------- 02456_ K-01 Serf collects debris. 02456_ Critical hit (Burn: +37). 02459_ K-01 Serf collects debris. 02460_ K-01 Serf destroyed. 02461_ Extracted 44 matter. 02461_ R-06 Scavenger collects Lgt. Ion Engine. 02463_ Extracted 5 matter. 02463_ Imp. Ion Engine destroyed. 02464_ Imp. Targeting Computer destroyed. 02466_ R-06 Scavenger collects Wheel. 02467_ Extracted 1 matter. 02468_ G-47 Trooper knocked back. 02471_ Critical hit (Burn: +37). 02472_ G-47 Trooper knocked back. 02474_ Assault Cannon destroyed. 02474_ Acquired 5 matter. 02483_ Acquired 3 matter. 02484_ Chainsword destroyed. 02497_ Lrg. Storage Unit destroyed. 02498_ Chainsword destroyed. Map ----- +----------------------------------------------------+ | ????????????????????????????????????????# #????? | | ????????????????????????????????????????# #????? | | ???????????????????????????????????????## ##???? | | ???????????????????????????????????????# #???? | | ???????????????????????????????######### " #???? | | ???????????????????????????????? "T #???? | | ??????????????????????????????# ######## #???? | | ???????????????????????????????????????# #???? | | ??????????????????????????????????????####/######? | | ??????????????????????????????????????# * #? | | ??????????????????????????????????????# """ !#? | | ??????????????????????????????????????# """"" #? | | ????????????????????#?????????????????# """""[[## | | ????????????????????# ??????????????# """""!=# | | ????????????????????# ??????????????# " !!%+% | | ???????????????????## ############??# %[#[ | | ???????????????????# "T" #??# !%# | | ???????????????????# o #??############ | | ???????????????????# #??#!! ! ## | | ???????????????????# #??#!! * ## | | ???????????????????# #??#! *[ ## | | ???????????????????# #??# % ## | | ???????????????????# """ """ ###########+## | | ?????????????##;#### ""[""""" % % %%%!% | | ???????????? T % g*"" "=% % | | ??????????; % ]%@%[%% ############## | | ??????????# g%] ! #??????????#### | | ??????????# ###############?????????????? | | ??????????? ????????##????????????????????? | | ??????????? ?????????????????????????????????? | | ???????????? ????????????????????????????????????? | | ?????????????????????????????????????????????????? | | ?????????????????????????????????????????????????? | | ?????????????????????????????????????????????????? | | ?????????????????????????????????????????????????? | | ?????????????????????????????????????????????????? | | ?????????????????????????????????????????????????? | | ?????????????????????????????????????????????????? | | ?????????????????????????????????????????????????? | | ?????????????????????????????????????????????????? | | ?????????????????????????????????????????????????? | | ?????????????????????????????????????????????????? | | ?????????????????????????????????????????????????? | | ???????????????????H?????????????????????????????? | | ?????????????????????????????????????????????????? | | ?????????????????????????????????????????????????? | | ?????????????????????????????????????????????????? | | ?????????????????????????????????????????????????? | | ?????????????????????????????????????????????????? | | ?????????????????????????????????????????????????? | +----------------------------------------------------+ Best States ------------- Heat Dissipation 31 Energy Generation 14 Energy Capacity 265 Matter Stores 300 Matter Capacity 300 Sight Range 18 Terrain Scan Range 16 Terrain Scan Density 10 Armor Coverage 150 Evasion (%) 41 Targeting Accuracy 6 Recoil Reduction 2 Item Schematics ----------------- None Robot Schematics ------------------ None Fabricated ------------ Nothing Alien Tech Used ----------------- None Achievements -------------- None Challenges ------------ None Game ------ Seed AuthchipMicrowarpCycler Manual? 0 Play Time 00:33:44 Cumulative 17.6 hours Start 2024.11.08 @ 15:24:32 End 2024.11.08 @ 17:35:10 Sessions 4 Manual Loads 0 Difficulty Rogue Special Mode None Game No. 57 Rogue 57 Adventurer 0 Explorer 0 Win Type - Total 0 Types 0/0/0/0/0/0/0/0/0 Lore% 7 Gallery% 18 Achievement% 16 Wizard Run 0 Options --------- Layout 0 ASCII 0 Keyboard 0 Movement Numpad Keybinds 0 Fullscreen 0 Font 16/SmallcapsGlow Map View 88x55 Zoom Use 0% Tactical HUD 1 Map Filters NONE Filters NONE Steam 1 RUN: 831fa352-4ea3-43b7-8bb6-840b2154f7a0